bitfinex/quotes_BTCUSD_20250219
["timestamp","ask_amount","ask_price","bid_price","bid_amount"]
[1740004016363,0.31421309,96738.0,96737.0,0.00289424]
[1740004016563,0.31421309,96738.0,96737.0,0.00389424]
[1740004017394,0.31421309,96738.0,96737.0,0.00189424]
[1740004017727,0.31421309,96738.0,96737.0,0.00289424]
[1740004019227,0.31421309,96738.0,96737.0,0.00189424]
[1740004019628,0.31421309,96738.0,96737.0,0.00289424]
[1740004030277,0.31421309,96738.0,96737.0,0.00189424]
[1740004030680,0.31421309,96738.0,96737.0,0.00089424]
[1740004034668,0.31521309,96738.0,96737.0,0.00089424]
[1740004035229,0.31621309,96738.0,96737.0,0.00089424]
[1740004047943,0.42639625,96738.0,96737.0,0.00089424]
[1740004048160,0.33075394,96738.0,96737.0,0.00089424]
[1740004050723,0.47880609,96738.0,96737.0,0.00089424]
[1740004051390,0.49501,96738.0,96737.0,0.00089424]
[1740004051589,0.51501,96738.0,96737.0,0.00089424]
[1740004051911,0.49501,96738.0,96737.0,0.00089424]
[1740004052104,0.59751365,96738.0,96737.0,0.00089424]
[1740004052727,1.08638165,96738.0,96737.0,0.00089424]
[1740004053483,1.03731465,96738.0,96737.0,0.00089424]
[1740004053690,0.155061,96736.0,96732.0,0.00085]
[1740004053894,1.01345001,96736.0,96732.0,0.00085]
[1740004054077,1.13595366,96736.0,96732.0,0.00085]
[1740004055142,1.14295366,96736.0,96735.0,0.00107261]
[1740004055352,1.14295366,96736.0,96735.0,0.00207261]
[1740004055554,1.14995366,96736.0,96735.0,0.00207261]
[1740004055961,1.57630766,96736.0,96735.0,0.00107261]
[1740004056290,1.47380401,96736.0,96735.0,0.00107261]
[1740004056773,1.39933601,96736.0,96735.0,0.00107261]
[1740004056973,1.31212501,96736.0,96735.0,0.00107261]
[1740004057174,1.31912501,96736.0,96735.0,0.00107261]
[1740004057374,1.31212501,96736.0,96735.0,7.261e-05]
[1740004057582,1.28545301,96736.0,96735.0,7.261e-05]
[1740004057978,1.29145301,96736.0,96735.0,0.00107261]
[1740004058378,1.39395666,96736.0,96735.0,0.00107261]
[1740004059842,1.39395666,96736.0,96735.0,0.00192361]
[1740004059980,1.41016119,96736.0,96735.0,0.00192361]
[1740004060339,1.20661354,96736.0,96735.0,0.00192361]
[1740004060719,1.21455653,96736.0,96735.0,0.00192361]
[1740004061855,0.18960685,96733.0,96732.0,0.00085]
[1740004062061,1.45044815,96733.0,96732.0,0.00085]
[1740004062260,1.44342815,96733.0,96732.0,0.00085]
[1740004062471,1.47147616,96733.0,96732.0,0.00085]
[1740004062671,1.17476016,96733.0,96732.0,0.00085]
[1740004063175,1.17976016,96733.0,96732.0,0.00085]
[1740004063701,1.18576016,96733.0,96732.0,0.00185]
[1740004064721,1.15771215,96733.0,96732.0,0.00185]
[1740004065503,0.30509,96718.0,96717.0,0.08307761]
[1740004066661,0.30709,96718.0,96717.0,0.08307761]
[1740004067095,0.32329517,96718.0,96717.0,0.08307761]
[1740004072399,0.32329517,96718.0,96717.0,0.08392901]
[1740004073328,0.32329517,96718.0,96717.0,0.0008514]
[1740004074074,0.30709,96718.0,96717.0,0.0008514]
[1740004075577,0.32163085,96718.0,96717.0,0.0008514]
[1740004075805,0.41437375,96718.0,96717.0,0.0008514]
[1740004076279,0.32163085,96718.0,96717.0,0.0008514]
[1740004076898,0.33783726,96718.0,96717.0,0.0008514]
[1740004083843,0.40685822,96718.0,96717.0,0.0008514]
[1740004084062,0.41065181,96718.0,96717.0,0.0008514]
[1740004088558,0.42685878,96718.0,96717.0,0.0008514]
[1740004088708,0.52936243,96718.0,96717.0,0.0008514]
[1740004089517,1.01686143,96718.0,96717.0,0.0008514]
[1740004090322,0.99686143,96718.0,96717.0,0.0008514]
[1740004090494,1.01686143,96718.0,96717.0,0.0008514]
[1740004091519,1.01686143,96718.0,96717.0,4e-07]
[1740004091713,0.52936243,96718.0,96717.0,4e-07]
[1740004094000,0.15,96705.0,96698.0,0.0474]
[1740004094230,0.31966685,96695.0,96694.0,0.00085]
[1740004095167,0.32948837,96695.0,96694.0,0.00085]
[1740004095375,0.32957763,96695.0,96694.0,0.00085]
[1740004096245,0.39982826,96695.0,96694.0,0.00085]
[1740004096372,0.50233191,96695.0,96694.0,0.00085]
[1740004096581,1.17238291,96695.0,96694.0,0.00085]
[1740004096979,1.18859393,96695.0,96694.0,0.00085]
[1740004097944,1.08609028,96695.0,96694.0,0.00085]
[1740004098147,1.08609028,96695.0,96680.0,0.1248]
[1740004098148,0.155149,96681.0,96680.0,0.0495]
[1740004098316,0.31968985,96681.0,96680.0,0.0495]
[1740004098951,0.33590187,96681.0,96680.0,0.0495]
[1740004099111,0.305159,96675.0,96674.0,0.16057761]
[1740004099662,0.305159,96675.0,96674.0,0.08307761]
[1740004100079,0.30516,96674.0,96671.0,0.04875]
[1740004100795,0.31970085,96674.0,96671.0,0.04875]
[1740004101000,0.46562285,96674.0,96671.0,0.00085]
[1740004101182,0.53699674,96674.0,96671.0,0.00085]
[1740004101814,0.305163,96672.0,96671.0,0.00085]
[1740004102130,0.96928975,96672.0,96671.0,0.00085]
[1740004102324,1.02817575,96672.0,96671.0,0.00085]
[1740004102744,0.305176,96664.0,96663.0,0.000851]
[1740004102950,0.31971685,96664.0,96663.0,0.000851]
[1740004103095,0.3916258,96664.0,96663.0,0.000851]
[1740004103441,0.40784176,96664.0,96663.0,0.000851]
[1740004103901,0.40784176,96664.0,96663.0,0.00128402]
[1740004104112,0.40784176,96664.0,96663.0,2e-08]
[1740004104311,0.52274387,96664.0,96663.0,2e-08]
[1740004104505,0.49554022,96664.0,96663.0,2e-08]
[1740004104706,0.51554022,96664.0,96663.0,2e-08]
[1740004104939,0.52154022,96664.0,96663.0,2e-08]
[1740004106410,0.54624581,96664.0,96663.0,2e-08]
[1740004107405,0.52554022,96664.0,96663.0,2e-08]
[1740004107611,0.5957694,96664.0,96663.0,2e-08]
[1740004108588,0.61198691,96664.0,96663.0,6.2e-07]
[1740004110009,0.64309891,96664.0,96663.0,6.2e-07]
[1740004110708,0.57286973,96664.0,96663.0,6.2e-07]
[1740004112481,0.305203,96647.0,96641.0,0.1233]
[1740004112719,0.71629265,96647.0,96646.0,0.00098042]
[1740004113400,0.73251089,96647.0,96646.0,0.00098042]
[1740004114039,0.71629265,96647.0,96646.0,0.00198042]
[1740004115419,0.71629265,96647.0,96646.0,0.00098042]
[1740004115741,0.71629265,96647.0,96646.0,0.00198042]
[1740004117511,0.39256265,96647.0,96646.0,0.00198042]
[1740004117738,0.81998265,96647.0,96646.0,0.00198042]
[1740004117910,0.73838265,96647.0,96646.0,0.00198042]
[1740004118454,0.75460115,96647.0,96646.0,0.00198042]
[1740004121356,0.74438515,96647.0,96646.0,0.00198042]
[1740004124068,0.72816665,96647.0,96646.0,0.00198042]
[1740004124476,0.71482365,96647.0,96646.0,0.00198042]
[1740004127140,0.73104204,96647.0,96646.0,0.00198042]
[1740004127978,0.40878104,96647.0,96646.0,0.00198042]
[1740004128172,0.73479504,96647.0,96646.0,0.00198042]
[1740004129856,0.83729869,96647.0,96646.0,0.00198042]
[1740004130448,0.73479504,96647.0,96646.0,0.00198042]
[1740004134141,0.71857665,96647.0,96646.0,0.00198042]
[1740004138335,0.73479519,96647.0,96646.0,0.00198042]
[1740004143930,0.71857665,96647.0,96646.0,0.00198042]
[1740004146912,1.29348465,96647.0,96646.0,0.00198042]
[1740004147141,1.2819576,96647.0,96646.0,0.00198042]
[1740004148639,1.29817618,96647.0,96646.0,0.00198042]
[1740004149132,1.22349618,96647.0,96646.0,0.00198042]
[1740004149332,1.19757318,96647.0,96646.0,0.00198042]
[1740004149837,1.18511018,96647.0,96646.0,0.00198042]
[1740004150731,1.17435723,96647.0,96646.0,0.00198042]
[1740004154116,1.15813865,96647.0,96646.0,0.00198042]
[1740004154679,1.18925265,96647.0,96646.0,0.00198042]
[1740004155311,1.15635365,96647.0,96646.0,0.00198042]
[1740004155855,1.08180265,96647.0,96646.0,0.00198042]
[1740004156661,1.1843063,96647.0,96646.0,0.00198042]
[1740004157035,1.20052503,96647.0,96646.0,0.00198042]
[1740004157364,0.54239903,96647.0,96646.0,0.00198042]
[1740004157520,1.45648703,96647.0,96646.0,0.00198042]
[1740004158311,1.45648703,96647.0,96646.0,0.00098042]
[1740004158692,1.46048703,96647.0,96646.0,0.00098042]
[1740004163950,1.4442683,96647.0,96646.0,0.00098042]
[1740004164357,1.2824743,96647.0,96646.0,0.00098042]
[1740004166490,1.2406163,96647.0,96646.0,0.00098042]
[1740004167109,1.13662303,96647.0,96646.0,0.00098042]
[1740004173250,1.10831803,96647.0,96646.0,0.00098042]
[1740004173684,1.00581438,96647.0,96646.0,0.00098042]
[1740004173872,0.32374385,96647.0,96646.0,0.12828042]
[1740004174008,0.309203,96647.0,96646.0,0.12828042]
[1740004174806,0.307203,96647.0,96646.0,0.12828042]
[1740004175477,0.305203,96647.0,96646.0,0.12828042]
[1740004175815,0.305203,96647.0,96646.0,0.12928042]
[1740004177258,0.305203,96647.0,96646.0,0.12828042]
[1740004177739,0.305203,96647.0,96646.0,0.12928042]
[1740004177941,0.305203,96647.0,96646.0,0.12828042]
[1740004178370,0.305203,96647.0,96646.0,0.13028042]
[1740004178672,0.305203,96647.0,96646.0,0.12828042]
[1740004178915,0.305203,96647.0,96646.0,0.13028042]
[1740004179116,0.305203,96647.0,96646.0,0.12828042]
[1740004179453,0.305203,96647.0,96646.0,0.13028042]
[1740004180549,0.305203,96647.0,96646.0,0.12828042]
[1740004181027,0.305203,96647.0,96646.0,0.13028042]
[1740004181678,0.15,96647.0,96646.0,0.13028042]
[1740004181932,0.15,96647.0,96646.0,0.12828042]
[1740004182127,0.305203,96647.0,96646.0,0.13028042]
[1740004182333,0.305203,96647.0,96646.0,0.12828042]
[1740004182732,0.305203,96647.0,96646.0,0.13028042]
[1740004182885,0.15,96647.0,96646.0,0.13028042]
[1740004183303,0.09737014,96660.0,96646.0,0.00298042]
[1740004183475,0.206925,96653.0,96652.0,0.08307761]
[1740004183898,0.356925,96653.0,96652.0,0.20367761]
[1740004184298,0.15,96653.0,96652.0,0.20367761]
[1740004184497,0.305194,96653.0,96652.0,0.20367761]
[1740004184703,0.305194,96653.0,96652.0,0.20567761]
[1740004186587,0.15,96653.0,96652.0,0.20567761]
[1740004189018,0.15,96653.0,96652.0,0.20410301]
[1740004189243,0.151,96653.0,96652.0,0.20610301]
[1740004190354,0.151,96653.0,96652.0,0.20810301]
[1740004190579,0.152,96653.0,96652.0,0.20810301]
[1740004191932,0.152,96653.0,96652.0,0.36329801]
[1740004192112,0.002,96653.0,96652.0,0.46580166]
[1740004195219,0.002,96653.0,96652.0,0.78340166]
[1740004200486,0.001,96653.0,96652.0,0.78140166]
[1740004200684,0.001,96653.0,96652.0,0.46380166]
[1740004200915,0.002,96653.0,96652.0,0.46580166]
[1740004201128,0.001,96653.0,96652.0,0.46380166]
[1740004201341,0.000852,96663.0,96662.0,0.282979]
[1740004201514,0.000852,96663.0,96662.0,0.38548265]
[1740004202824,0.001852,96663.0,96662.0,0.39148265]
[1740004203412,0.001852,96663.0,96662.0,0.39748265]
[1740004204672,0.001852,96663.0,96662.0,0.39739066]
[1740004224050,0.001852,96663.0,96662.0,0.24230365]
[1740004224493,0.001852,96663.0,96662.0,0.39748265]
[1740004224700,0.001852,96663.0,96662.0,0.24230365]
[1740004224855,0.001852,96663.0,96662.0,0.39790805]
[1740004225050,0.001852,96663.0,96662.0,0.24272905]
[1740004225261,0.15703,96663.0,96662.0,0.16222905]
[1740004225466,0.15703,96663.0,96662.0,0.11492905]
[1740004227153,0.30703,96663.0,96662.0,0.11492905]
[1740004229783,0.31714959,96663.0,96662.0,0.11492905]
[1740004238571,0.31714959,96663.0,96662.0,0.0124254]
[1740004256512,0.31614959,96663.0,96662.0,0.0004254]
[1740004256775,0.31614959,96663.0,96662.0,0.0024254]
[1740004257308,0.31614959,96663.0,96662.0,0.0014254]
[1740004257647,0.31614959,96663.0,96662.0,0.0004254]
[1740004258030,0.31614959,96663.0,96662.0,0.0014254]
[1740004258761,0.33236534,96663.0,96662.0,0.0014254]
[1740004258966,0.33236534,96663.0,96662.0,0.0024254]
[1740004259190,0.33236534,96663.0,96662.0,0.0014254]
[1740004259638,0.33236534,96663.0,96662.0,0.0004254]
[1740004260189,0.34690619,96663.0,96662.0,0.0004254]
[1740004260631,0.42610619,96663.0,96662.0,0.0004254]
[1740004263913,0.40989044,96663.0,96662.0,0.0004254]
[1740004266940,0.42610698,96663.0,96662.0,0.0004254]
[1740004267347,0.49725092,96663.0,96662.0,0.0004254]
[1740004267754,0.42610698,96663.0,96662.0,0.0004254]
[1740004268118,0.49806943,96663.0,96662.0,0.0004254]
[1740004268320,0.88398943,96663.0,96662.0,4e-07]
[1740004268450,0.49806943,96663.0,96662.0,4e-07]
[1740004269253,0.50306943,96663.0,96662.0,4e-07]
[1740004269522,0.62557308,96663.0,96662.0,4e-07]
[1740004269748,0.67217308,96663.0,96662.0,4e-07]
[1740004269903,0.67617308,96663.0,96662.0,4e-07]
[1740004271826,0.65617308,96663.0,96662.0,4e-07]
[1740004272051,0.67617308,96663.0,96662.0,4e-07]
[1740004273960,0.65995654,96663.0,96662.0,4e-07]
[1740004274169,0.65995654,96663.0,96646.0,0.00094042]
[1740004274170,0.305203,96647.0,96646.0,0.00094042]
[1740004274399,1.02373765,96647.0,96646.0,0.00094042]
[1740004274566,1.12641165,96647.0,96646.0,0.00094042]
[1740004274768,0.92758965,96647.0,96646.0,0.00094042]
[1740004275138,0.90690665,96647.0,96646.0,0.00094042]
[1740004275315,1.0094103,96647.0,96646.0,0.00094042]
[1740004275518,1.0094103,96647.0,96646.0,0.00294042]
[1740004275770,1.0094103,96647.0,96638.0,2.2e-07]
[1740004275771,0.15,96640.0,96638.0,2.2e-07]
[1740004275975,0.03454085,96646.0,96638.0,2.2e-07]
[1740004275976,0.81758715,96639.0,96638.0,0.00013007]
[1740004276182,0.81179515,96639.0,96638.0,0.00013007]
[1740004276386,0.89479515,96639.0,96638.0,7e-08]
[1740004276527,0.47597715,96639.0,96638.0,7e-08]
[1740004276734,0.305228,96632.0,96631.0,2.7e-07]
[1740004276958,0.39339073,96632.0,96631.0,6.301e-05]
[1740004283463,0.39339073,96632.0,96631.0,0.00048861]
[1740004287265,0.4096123,96632.0,96631.0,0.00048861]
[1740004287702,0.4126123,96632.0,96631.0,0.00048861]
[1740004289470,0.4146123,96632.0,96631.0,0.00048861]
[1740004290435,0.4146123,96632.0,96631.0,6.1e-07]
[1740004291154,0.4146123,96632.0,96609.0,0.0807]
[1740004291155,0.02,96623.0,96603.0,0.0765]
[1740004291358,0.305273,96604.0,96603.0,0.0765]
[1740004291686,0.305282,96598.0,96597.0,0.07743619]
[1740004292462,0.3151914,96598.0,96597.0,0.07743619]
[1740004293301,0.3151914,96598.0,96597.0,0.00093619]
[1740004293659,0.3161914,96598.0,96597.0,0.00293619]
[1740004294011,0.33073225,96598.0,96597.0,0.00293619]
[1740004294211,0.33173225,96598.0,96597.0,0.00293619]
[1740004294621,0.33073225,96598.0,96597.0,0.00293619]
[1740004295283,0.32973225,96598.0,96597.0,0.00093619]
[1740004295685,0.40517535,96598.0,96597.0,0.00093619]
[1740004296043,0.507679,96598.0,96597.0,0.00093619]
[1740004296803,0.508679,96598.0,96597.0,0.00093619]
[1740004297097,0.914895,96598.0,96597.0,0.00093619]
[1740004297345,0.87871,96598.0,96597.0,0.00093619]
[1740004297521,0.88471,96598.0,96597.0,0.00093619]
[1740004297876,0.513679,96598.0,96597.0,0.00093619]
[1740004298127,1.07349683,96598.0,96597.0,0.00093619]
[1740004298471,1.07749683,96598.0,96597.0,0.00093619]
[1740004298881,1.07349683,96598.0,96597.0,0.00093619]
[1740004299331,1.07849683,96598.0,96597.0,0.00093619]
[1740004299964,0.16454085,96597.0,96580.0,0.06050019]
[1740004300168,0.30531,96581.0,96580.0,0.06093368]
[1740004300929,0.32153858,96581.0,96580.0,0.06093368]
[1740004302417,0.32153858,96581.0,96580.0,0.00043349]
[1740004305063,0.30531,96581.0,96580.0,0.00043349]
[1740004307280,0.30531,96581.0,96580.0,0.00085909]
[1740004308082,0.32153862,96581.0,96580.0,0.00085909]
[1740004312962,0.30531,96581.0,96580.0,0.00085909]
[1740004315997,0.32153906,96581.0,96580.0,0.00085909]
[1740004316838,0.32253906,96581.0,96580.0,0.00085909]
[1740004317265,0.30731,96581.0,96580.0,0.00085909]
[1740004318528,0.31031,96581.0,96580.0,0.00085909]
[1740004320240,0.34107991,96581.0,96580.0,0.00085909]
[1740004321767,0.33807991,96581.0,96580.0,0.00085909]
[1740004322175,0.34207991,96581.0,96580.0,0.00085909]
[1740004322332,0.34607991,96581.0,96580.0,0.00085909]
[1740004327133,0.32985085,96581.0,96580.0,0.00085909]
[1740004329963,0.34607995,96581.0,96580.0,0.00085909]
[1740004337868,0.32985085,96581.0,96580.0,0.00085909]
[1740004340892,0.34607995,96581.0,96580.0,0.00085909]
[1740004344468,0.32985085,96581.0,96580.0,0.00085909]
[1740004347857,0.34607996,96581.0,96580.0,0.00085909]
[1740004353970,0.32985085,96581.0,96580.0,0.00085909]
[1740004357102,0.34607996,96581.0,96580.0,0.00085909]
[1740004364204,0.32985085,96581.0,96580.0,0.00085909]
[1740004368641,0.3460806,96581.0,96580.0,0.00085909]
[1740004373263,0.32985085,96581.0,96580.0,0.00085909]
[1740004377757,0.34608055,96581.0,96580.0,0.00085909]
[1740004380207,0.42243474,96581.0,96580.0,0.00085909]
[1740004380409,0.42243474,96581.0,96580.0,9e-08]
[1740004380619,0.50373474,96581.0,96580.0,9e-08]
[1740004381806,0.305316,96577.0,96576.0,9e-08]
[1740004382001,0.39685706,96577.0,96576.0,9e-08]
[1740004383575,0.40185706,96577.0,96576.0,9e-08]
[1740004384480,0.40885706,96577.0,96576.0,9e-08]
[1740004385014,0.40185706,96577.0,96576.0,9e-08]
[1740004385366,0.40885706,96577.0,96576.0,9e-08]
[1740004385958,0.40185706,96577.0,96576.0,9e-08]
[1740004386406,0.39685706,96577.0,96576.0,9e-08]
[1740004386782,0.40285706,96577.0,96576.0,9e-08]
[1740004387205,0.40985706,96577.0,96576.0,9e-08]
[1740004387628,0.41781008,96577.0,96576.0,9e-08]
[1740004388734,0.41781008,96577.0,96565.0,0.0004254]
[1740004388735,0.31987285,96567.0,96565.0,0.0004254]
[1740004389489,0.36724276,96567.0,96565.0,0.0004254]
[1740004390502,0.37124276,96567.0,96565.0,0.0004254]
[1740004390703,0.37424276,96567.0,96565.0,0.0004254]
[1740004390908,0.37024276,96567.0,96565.0,0.0004254]
[1740004391346,0.37524276,96567.0,96565.0,0.0004254]
[1740004394150,0.34410476,96567.0,96565.0,0.0004254]
[1740004398877,0.4049776,96567.0,96565.0,0.0004254]
[1740004400246,0.4049776,96567.0,96566.0,4e-07]
[1740004400448,0.3999776,96567.0,96566.0,4e-07]
[1740004400660,0.4039776,96567.0,96566.0,4e-07]
[1740004400858,0.4099776,96567.0,96566.0,4e-07]
[1740004401675,0.42621003,96567.0,96566.0,4e-07]
[1740004404002,0.4099776,96567.0,96566.0,4e-07]
[1740004407269,0.42620999,96567.0,96566.0,4e-07]
[1740004412262,0.49780331,96567.0,96566.0,4e-07]
[1740004413922,0.48157092,96567.0,96566.0,4e-07]
[1740004414984,0.4099776,96567.0,96566.0,4e-07]
[1740004416229,0.4108292,96567.0,96566.0,4e-07]
[1740004417183,0.42706163,96567.0,96566.0,4e-07]
[1740004420917,1.28793885,96566.0,96565.0,8e-07]
[1740004421122,0.39703322,96566.0,96565.0,8e-07]
[1740004422224,0.40403322,96566.0,96565.0,8e-07]
[1740004423536,0.41003322,96566.0,96565.0,8e-07]
[1740004423991,0.44278415,96566.0,96565.0,8e-07]
[1740004424500,0.5452878,96566.0,96565.0,8e-07]
[1740004426860,0.44278415,96566.0,96565.0,8e-07]
[1740004430663,0.4590171,96566.0,96565.0,8e-07]
[1740004432526,0.42626617,96566.0,96565.0,8e-07]
[1740004434398,0.41003322,96566.0,96565.0,8e-07]
[1740004435609,0.40303322,96566.0,96565.0,8e-07]
[1740004435815,0.41003322,96566.0,96565.0,8e-07]
[1740004436691,0.40403322,96566.0,96565.0,8e-07]
[1740004437245,0.41003322,96566.0,96565.0,8e-07]
[1740004437448,0.44333408,96566.0,96565.0,8e-07]
[1740004437592,0.45956698,96566.0,96565.0,8e-07]
[1740004438440,0.44656698,96566.0,96565.0,8e-07]
[1740004438638,0.45956698,96566.0,96565.0,8e-07]
[1740004440225,0.56207063,96566.0,96565.0,8e-07]
[1740004441080,0.56292223,96566.0,96565.0,8e-07]
[1740004441403,0.54992223,96566.0,96565.0,8e-07]
[1740004441785,0.56392223,96566.0,96565.0,8e-07]
[1740004443054,0.46141858,96566.0,96565.0,8e-07]
[1740004444104,0.31989585,96553.0,96552.0,0.0453]
[1740004444277,0.39775137,96553.0,96552.0,0.0453]
[1740004445157,0.40778421,96553.0,96552.0,0.0453]
[1740004445310,0.41378421,96553.0,96552.0,0.0453]
[1740004445488,0.40826088,96553.0,96552.0,0.0453]
[1740004447041,0.42449499,96553.0,96552.0,0.0453]
[1740004450057,0.42049499,96553.0,96552.0,0.0453]
[1740004450546,0.42549499,96553.0,96552.0,0.0453]
[1740004450708,0.42349499,96553.0,96552.0,0.0453]
[1740004450846,0.42149499,96553.0,96552.0,0.0453]
[1740004451049,0.41849499,96553.0,96552.0,0.0453]
[1740004451321,0.42349499,96553.0,96552.0,0.0453]
[1740004451512,0.42649499,96553.0,96552.0,0.0453]
[1740004453512,0.42649499,96553.0,96552.0,0.0457255]
[1740004455396,0.41026088,96553.0,96552.0,0.0457255]
[1740004458336,0.42649495,96553.0,96552.0,0.0457255]
[1740004460652,0.4119541,96553.0,96552.0,0.0457255]
[1740004460894,0.33409858,96553.0,96552.0,0.0457255]
[1740004461373,0.33409858,96553.0,96552.0,0.1263255]
[1740004462023,0.32909858,96553.0,96552.0,0.1263255]
[1740004462455,0.32709858,96553.0,96552.0,0.1263255]
[1740004462862,0.17609858,96553.0,96552.0,0.1263255]
[1740004463065,0.15986451,96553.0,96552.0,0.1263255]
[1740004463303,0.30986451,96553.0,96552.0,0.1263255]
[1740004464591,0.16003284,96553.0,96552.0,0.1263255]
[1740004464789,0.31538784,96553.0,96552.0,0.1263255]
[1740004465370,0.16003284,96553.0,96552.0,0.1263255]
[1740004465964,0.1508512,96553.0,96552.0,0.1263255]
[1740004466548,0.0008512,96553.0,96552.0,0.54922915]
[1740004466719,0.0008512,96553.0,96552.0,0.70458515]
[1740004468455,0.0018512,96553.0,96552.0,0.723984]
[1740004468879,0.0028512,96553.0,96552.0,0.723984]
[1740004469426,0.0028512,96553.0,96552.0,0.7303198]
[1740004473429,0.0028512,96553.0,96552.0,0.723984]
[1740004483197,0.0028512,96553.0,96552.0,0.73030376]
[1740004485337,0.0018512,96553.0,96552.0,0.73030376]
[1740004485748,0.0028512,96553.0,96552.0,0.73530376]
[1740004486438,0.0018512,96553.0,96552.0,0.73530376]
[1740004486708,0.0028512,96553.0,96552.0,0.74130376]
[1740004499225,0.0028512,96553.0,96552.0,0.77365199]
[1740004499426,0.0028512,96553.0,96552.0,0.74130376]
[1740004500049,0.0028512,96553.0,96552.0,0.77365317]
[1740004511578,0.0028512,96553.0,96552.0,0.78105317]
[1740004520993,0.0028512,96553.0,96552.0,0.77365317]
[1740004521312,0.0028512,96553.0,96552.0,0.78105317]
[1740004543933,0.0028512,96553.0,96552.0,0.70045317]
[1740004544217,0.0028512,96553.0,96552.0,0.46004776]
[1740004544545,0.0794512,96553.0,96552.0,0.35754411]
[1740004544985,0.09697387,96553.0,96552.0,0.35754411]
[1740004545406,0.09597387,96553.0,96552.0,0.34522435]
[1740004545607,0.09497387,96553.0,96552.0,0.34522435]
[1740004545813,0.09597387,96553.0,96552.0,0.3258255]
[1740004546013,0.09697387,96553.0,96552.0,0.3308255]
[1740004547275,0.08689423,96553.0,96552.0,0.3308255]
[1740004548606,0.24224923,96553.0,96552.0,0.3308255]
[1740004549083,0.09712732,96553.0,96552.0,0.3308255]
[1740004550546,0.25248232,96553.0,96552.0,0.3308255]
[1740004550749,0.08689423,96553.0,96552.0,0.3308255]
[1740004551099,0.01029423,96553.0,96552.0,0.3308255]
[1740004551536,0.02041684,96553.0,96552.0,0.3308255]
[1740004551772,0.01029423,96553.0,96552.0,0.3308255]
[1740004556369,0.16564923,96553.0,96552.0,0.3308255]
[1740004558175,0.01029423,96553.0,96552.0,0.3308255]
[1740004559124,0.16564923,96553.0,96552.0,0.3308255]
[1740004559323,0.01029423,96553.0,96552.0,0.3308255]
[1740004559958,0.0028512,96553.0,96552.0,0.3308255]
[1740004560566,0.00950008,96553.0,96552.0,0.3308255]
[1740004566354,0.0028512,96553.0,96552.0,0.3308255]
[1740004566718,0.00950008,96553.0,96552.0,0.3308255]
[1740004566953,0.0028512,96553.0,96552.0,0.3308255]
[1740004567182,0.00950008,96553.0,96552.0,0.3308255]
[1740004570670,0.0028512,96553.0,96552.0,0.3308255]
[1740004570839,0.00950008,96553.0,96552.0,0.3308255]
[1740004571001,0.0028512,96553.0,96552.0,0.3308255]
[1740004571202,0.00950008,96553.0,96552.0,0.3308255]
[1740004573655,0.00950008,96553.0,96552.0,0.4861815]
[1740004574167,0.0028512,96553.0,96552.0,0.4861815]
[1740004574624,0.0028512,96553.0,96552.0,0.58868515]
[1740004574828,0.0028512,96553.0,96552.0,0.67068515]
[1740004575352,0.0028512,96553.0,96552.0,0.71628515]
[1740004601546,0.0028512,96553.0,96552.0,0.71628515]
[1740004610494,0.0028512,96553.0,96552.0,0.74865668]
[1740004611092,0.0028512,96553.0,96552.0,0.71628515]
[1740004616086,0.0028512,96553.0,96552.0,0.74865026]
[1740004616435,0.0028512,96553.0,96552.0,0.8418731]
[1740004616776,0.0018512,96553.0,96552.0,0.8368731]
[1740004617178,0.0028512,96553.0,96552.0,0.8418731]
[1740004618338,0.0018512,96553.0,96552.0,0.8368731]
[1740004618552,0.0008512,96553.0,96552.0,1.3752731]
[1740004618751,0.0008512,96553.0,96552.0,1.4002731]
[1740004618919,0.0008512,96553.0,96552.0,1.3952731]
[1740004619328,0.0008512,96553.0,96552.0,1.41681395]
[1740004619532,2e-07,96553.0,96552.0,1.42381395]
[1740004619750,2e-07,96553.0,96552.0,1.33059111]
[1740004620481,2e-07,96553.0,96552.0,1.49359111]
[1740004620711,2e-07,96553.0,96552.0,1.60279111]
[1740004621330,2e-07,96553.0,96552.0,1.60979111]
[1740004621545,2e-07,96567.0,96566.0,0.1517]
[1740004621747,2e-07,96567.0,96566.0,0.62644361]
[1740004623809,2e-07,96567.0,96566.0,0.63344361]
[1740004624006,2e-07,96567.0,96566.0,0.64044361]
[1740004625045,2e-07,96567.0,96566.0,0.66883068]
[1740004625248,2e-07,96567.0,96566.0,1.53263068]
[1740004625450,5.9e-07,96577.0,96576.0,0.48745885]
[1740004625800,5.9e-07,96577.0,96576.0,1.49352761]
[1740004627094,5.9e-07,96577.0,96576.0,1.50052761]
[1740004627754,5.9e-07,96577.0,96576.0,1.49352761]
[1740004628219,5.9e-07,96577.0,96576.0,1.50752761]
[1740004630302,5.9e-07,96577.0,96576.0,1.4751625]
[1740004632274,5.9e-07,96577.0,96576.0,1.56765594]
[1740004634974,5.9e-07,96577.0,96576.0,1.4751625]
[1740004635384,5.9e-07,96577.0,96576.0,1.50723624]
[1740004639436,5.9e-07,96577.0,96576.0,1.50766164]
[1740004641600,5.9e-07,96577.0,96576.0,1.50026164]
[1740004641747,5.9e-07,96577.0,96576.0,1.4755879]
[1740004642355,5.9e-07,96577.0,96576.0,1.5076699]
[1740004644602,5.9e-07,96577.0,96576.0,1.60002495]
[1740004647210,5.9e-07,96577.0,96576.0,1.5076699]
[1740004652761,5.9e-07,96577.0,96576.0,1.4876699]
[1740004652967,5.9e-07,96577.0,96576.0,1.5076699]
[1740004653414,5.9e-07,96577.0,96576.0,1.4876699]
[1740004653636,5.9e-07,96577.0,96576.0,1.5076699]
[1740004658709,5.9e-07,96577.0,96576.0,1.4876699]
[1740004659561,5.9e-07,96577.0,96576.0,1.33812905]
[1740004659765,5.9e-07,96577.0,96576.0,1.17552905]
[1740004660444,5.9e-07,96577.0,96576.0,1.19552905]
[1740004662654,5.9e-07,96577.0,96576.0,1.17552905]
[1740004665400,5.9e-07,96577.0,96576.0,1.19552905]
[1740004666099,5.9e-07,96577.0,96576.0,1.29552905]
[1740004673129,5.9e-07,96577.0,96576.0,1.27552905]
[1740004673267,5.9e-07,96577.0,96576.0,1.29552905]
[1740004677940,5.9e-07,96577.0,96576.0,1.28852905]
[1740004678152,5.9e-07,96577.0,96576.0,1.29552905]
[1740004678793,5.9e-07,96577.0,96576.0,1.28852905]
[1740004679094,5.9e-07,96577.0,96576.0,1.29552905]
[1740004679792,5.9e-07,96577.0,96576.0,1.27552905]
[1740004680788,5.9e-07,96577.0,96576.0,1.29552905]
[1740004688085,5.9e-07,96577.0,96576.0,1.27552905]
[1740004689551,5.9e-07,96577.0,96576.0,1.26812905]
[1740004689755,5.9e-07,96577.0,96576.0,1.27552905]
[1740004702031,5.9e-07,96577.0,96576.0,1.26152905]
[1740004702228,5.9e-07,96577.0,96576.0,1.27552905]
[1740004703476,5.9e-07,96577.0,96576.0,0.72472905]
[1740004703673,5.9e-07,96577.0,96576.0,0.73212905]